Cogmind - Beta 9.5 @@@ ROGUE MODE // 2020.04.01 @ 06:38:47 // AFD2020/Player2 Player: SHADOWELITE7 Result: Destroyed by G-47 Trooper with Particle Gun Performance ------------- Evolutions (0) 0 Regions Visited (1) 200 Robots Destroyed (2) 10 Value Destroyed (68) 68 Prototype IDs (0) 0 Alien Tech Used (0) 0 Bonus (0) 0 TOTAL SCORE: 278 Bonus ------- None Cogmind --------- Core Integrity 0/250 Matter 284/300 Energy 100/100 System Corruption 0% Temperature Cool (9) Movement Core (100) Ox1 Location -10/Materials Parts ------- > --- POWER (1) -------- (None) > --- PROPULSION (2) --- (None) > --- UTILITY (2) ------ Small Storage Unit > --- WEAPON (2) ------- (None) > --- INVENTORY (6) ---- Ion Engine Small Laser Datajack Peak State ------------ > --- POWER ------------ Ion Engine > --- PROPULSION ------- Light Treads Light Treads > --- UTILITY ---------- Small Storage Unit > --- WEAPON ----------- Assault Rifle Assault Rifle > --- INVENTORY -------- Ion Engine Small Laser [Rating: 6] Favorites ----------- Power Ion Engine Engine Ion Engine Propulsion Light Treads Treads Light Treads Utility Small Storage Unit Device Tractor Beam Storage Small Storage Unit Weapon Assault Rifle Ballistic Gun Assault Rifle Build | -11 -10 ------- Run | Scr Mat Slots Evolved . | . . Power . | . . Propulsion . | . . Utility . | . . Weapon . | . . Parts Attached 7 | 6 1 Power 1 | 1 . Engine 1 | 1 . Core . | . . Reactor . | . . Propulsion 2 | 2 . Treads 2 | 2 . Leg . | . . Wheel . | . . Hover . | . . Flight . | . . Utility 2 | 1 1 Device 1 | . 1 Storage 1 | 1 . Processor . | . . Hackware . | . . Protection . | . . Artifact . | . . Weapon 2 | 2 . Energy Gun . | . . Energy Cannon . | . . Ballistic Gun 2 | 2 . Ballistic Cannon . | . . Launcher . | . . Special Weapon . | . . Impact Weapon . | . . Slashing Weapon . | . . Piercing Weapon . | . . Special Melee Weapon . | . . Unidentified Prototypes . | . . Parts Lost 5 | . 5 Power 1 | . 1 Propulsion 1 | . 1 Utility 1 | . 1 Weapon 2 | . 2 Highest Loss Streak 5 | . 5 Average Slot Usage (%) 79 | . 79 Engine 14 | . 14 Treads 17 | . 17 Device 6 | . 6 Storage 14 | . 14 Ballistic Gun 26 | . 26 Naked Turns . | . . Heaviest Build 14 | 13 14 Greatest Support 40 | 40 40 Greatest Overweight (x) 1 | . 1 Average Overweight (x) . | . . Largest Inventory Capacity 6 | 6 6 Average Capacity 5 | 5 6 Most Carried 5 | 5 3 Average Carried 2 | 2 2 Final Capacity 6 | 6 6 Final Carried 3 | 2 3 Class Distribution -------------------- 100% | Mutant Dominant Class ---------------- Mutant | -10/Materials Resources | -11 -10 ----------- Run | Scr Mat Matter Collected 273 | 229 44 Remotely . | . . Salvage Created 84 | . 84 Parts 5 | . 5 Haulers Intercepted . | . . Recyclers Shooed . | . . Parts Field Recycled . | . . Retrieved Matter . | . . Parts Self-Destructed . | . . Prevented . | . . Kills | -11 -10 ------- Run | Scr Mat Combat Hostiles Destroyed 2 | . 2 Guns 2 | . 2 Classes Destroyed 1 | . 1 Grunt 2 | . 2 Best Kill Streak 2 | . 2 Combat Bots Only 2 | . 2 Max Kills in Single Turn 1 | . 1 Gunslinging . | . . Exploded . | . . Melee . | . . Uniques/NPCs Destroyed . | . . Combat | -11 -10 -------- Run | Scr Mat Damage Taken 768 | . 768 Core 236 | . 236 Absorbed by Shields . | . . Core Remaining (%) 100 | 100 . Volleys Fired 9 | . 9 Largest 2 | . 2 Hottest 40 | . 40 Shots Fired 17 | . 17 Gun 17 | . 17 Cannon . | . . Launcher . | . . Special . | . . Kinetic 17 | . 17 Thermal . | . . Explosive . | . . Electromagnetic . | . . Robot Hit Streak 2 | . 2 Robot Miss Streak 3 | . 3 Penetration Max . | . . Secondary Targets . | . . Shots Hit Robots 7 | . 7 Core Hits 3 | . 3 Critical Hits . | . . Critical Kills . | . . Critical Parts Destroyed . | . . Melee Attacks . | . . Impact . | . . Slashing . | . . Piercing . | . . Sneak Attacks . | . . Combat Hostiles . | . . Follow-up Attacks . | . . Damage Inflicted 102 | . 102 Guns 101 | . 101 Cannons . | . . Explosions . | . . Melee . | . . Ramming 1 | . 1 Kinetic 101 | . 101 Thermal . | . . Explosive . | . . Electromagnetic . | . . Impact . | . . Slashing . | . . Piercing . | . . Highest Corruption . | . . Average Corruption . | . . Corruption Purged . | . . Overload Shots . | . . Overflow Damage . | . . Projectiles . | . . Explosions . | . . Melee . | . . Knockbacks . | . . Impact . | . . Kinetic . | . . Secondary . | . . Self-Inflicted Damage . | . . Shots . | . . Rammed 2 | . 2 Targets Rammed 2 | . 2 Kicked . | . . Crushed . | . . Highest Temperature 46 | . 46 Average Temperature 23 | . 23 Received Heat Transfer 255 | . 255 Siege Activations . | . . Robots Corrupted . | . . Combat Hostiles . | . . Parts Fried . | . . Impact Corruptions . | . . Robots Melted . | . . Combat Hostiles . | . . Parts Melted . | . . Heat Transferred . | . . Parts Sabotaged . | . . Parts Stolen . | . . Parts Stripped . | . . Power Chain Reactions . | . . Missiles Intercepted . | . . Alert | -11 -10 ------- Run | Scr Mat Peak Influence 52 | . 52 Average Influence 1 | . 2 Maximum Alert Level . | . . Low Security (%) 100 | 100 100 Level 1 . | . . Level 2 . | . . Level 3 . | . . Level 4 . | . . Level 5 . | . . High Security . | . . Max Security . | . . Squads Dispatched 4 | . 4 Investigation 1 | . 1 Extermination . | . . Reinforcement 3 | . 3 Assault . | . . Garrison . | . . Intercept . | . . Construction Impeded . | . . Haulers Reinforced . | . . Stealth | -11 -10 --------- Run | Scr Mat Distress Signals 3 | . 3 Communications Jammed . | . . Distress Signals . | . . Times Spotted 14 | . 14 Peak Tracking Total 11 | . 11 Tactical Retreats . | . . Traps | -11 -10 ------- Run | Scr Mat Traps Triggered 1 | . 1 Indirectly . | . . Trap Hack Attempts . | . . Triggered . | . . Disarmed . | . . Reprogrammed . | . . Reused . | . . Traps Extracted . | . . Installed . | . . Triggered . | . . Machines | -11 -10 ---------- Run | Scr Mat Machines Disabled . | . . Max in Single Turn . | . . Machines Sabotaged . | . . Garrisons Compromised . | . . Overloaded Fab Kills . | . . Fab Network Shutdowns . | . . Hacking | -11 -10 --------- Run | Scr Mat Machines Accessed 1 | . 1 Terminals 1 | . 1 Fabricators . | . . Repair Stations . | . . Recycling Units . | . . Scanalyzers . | . . Garrison Access . | . . Total Hacks 2 | . 2 Successful 2 | . 2 Failed . | . . Catastrophic . | . . Database Lockouts . | . . Manual . | . . Terminals 2 | . 2 Fabricators . | . . Repair Stations . | . . Recycling Units . | . . Scanalyzers . | . . Garrison Access . | . . Terminal Hacks 2 | . 2 Record 1 | . 1 Hauler Manifests 1 | . 1 Fabricator Hacks . | . . Repair Station Hacks . | . . Recycling Unit Hacks . | . . Scanalyzer . | . . Garrison Access Hacks . | . . Unauthorized Hacks . | . . Terminals . | . . Fabricators . | . . Repair Stations . | . . Recycling Units . | . . Scanalyzers . | . . Garrison Access . | . . Data Cores Recovered . | . . Used . | . . Hacking Detections 1 | . 1 Full Trace Events . | . . Feedback Events . | . . Feedback Blocked . | . . Robot Schematics Acquired . | . . Robots Built . | . . Matter . | . . Time . | . . Total Robot Build Rating . | . . Part Schematics Acquired . | . . Parts Built . | . . Matter . | . . Time . | . . Total Part Build Rating . | . . Parts Repaired . | . . Time . | . . Parts Recycled . | . . Recycled Matter . | . . Retrieved Matter . | . . Retrieved Components . | . . Parts Scanalyzed . | . . Part Schematics Acquired . | . . Parts Damaged . | . . Bothacking | -11 -10 ------------ Run | Scr Mat Used RIF Installer . | . . Robots Hacked . | . . Non-combat . | . . Combat . | . . Robot Hacks Applied . | . . Relay Couplers Released . | . . Robots Rewired . | . . Allies Hacked . | . . Hacks Repelled . | . . Allies | -11 -10 -------- Run | Scr Mat Total Allies 1 | . 1 Largest Group 1 | . 1 Highest-Rated Group 54 | . 54 Highest-Rated Ally 54 | . 54 Total Orders . | . . Ally Attacks . | . . Total Damage . | . . Kills . | . . Allies Corrupted . | . . Allies Melted . | . . Intel | -11 -10 ------- Run | Scr Mat Robot Analysis Total . | . . Derelict Logs Recovered . | . . Drone Launches . | . . Drone Recoveries . | . . Exploration | -11 -10 ------------- Run | Scr Mat Turns Passed 293 | 82 211 Spaces Moved 162 | 49 113 Core 10 | 8 2 Treads 152 | 41 111 Legs . | . . Wheels . | . . Hover . | . . Flight . | . . Fastest Speed 50 | 50 100 Average Speed 153 | 142 158 Slowest Speed 160 | 160 160 Overloaded Moves . | . . Propulsion Burnouts . | . . Robots Hopped . | . . Cave-ins Triggered . | . . Exploration Rate (%) 13 | 4 23 Regions Visited 1 Branch Regions . Pre-discovered Areas . | . . Known Exits Taken . | . . Unknown Exits Taken 1 | 1 . Scrap Searched . | . . Spaces Dug . | . . Terrain Destroyed . | . . Melee . | . . Projectile . | . . AOE . | . . Actions | -11 -10 --------- Run | Scr Mat Total 190 | 62 128 Wait . | . . Move 161 | 48 113 Hop . | . . Pick Up 10 | 8 2 Fast Attach . | . . Attach 7 | 6 1 Detach . | . . Swap . | . . Drop 1 | . 1 Fire 9 | . 9 Melee . | . . Ram 1 | . 1 Kick . | . . Crush 1 | . 1 Escape Stasis . | . . Rewire . | . . Trap . | . . Miscellaneous . | . . Route ------- -11/Scrapyard -10/Materials (discovered 1 exit: [*Mat]) History --------- Turn | Location | Event 12 | -11/Scrapyard | Discovered new exit (range 16) 83 | -11/Scrapyard | Entered Materials 249 | -10/Materials | Discovered new exit (range 10) 274 | -10/Materials | Core integrity fell below 50% 292 | -10/Materials | Core integrity fell below 20% 294 | -10/Materials | Destroyed by G-47 Trooper with Particle Gun Last Messages --------------- 00277_ ALERT: Hostiles spotted, dispatching reinforcements to Terminal M002. 00277_ W-16 Scout sends out distress signal. 00279_ Tractor Beam destroyed. 00280_ R-06 Scavenger collects Lgt. Ion Engine. 00282_ G-34 Mercenary destroyed. 00284_ Assault Rifle destroyed. 00285_ G-34 Mercenary destroyed. 00286_ U-05 Engineer lays Concrete. 00288_ Assault Rifle destroyed. 00289_ Acquired 44 matter. 00290_ R-06 Scavenger collects Aluminum Leg. 00290_ U-05 Engineer lays Concrete. 00291_ Ion Engine destroyed. 00291_ Slammed into R-06 Scavenger. 00292_ Lgt. Treads destroyed. 00292_ U-05 Engineer lays Concrete. 00292_ R-06 Scavenger collects Aluminum Leg. 00293_ U-05 Engineer lays Concrete. 00294_ Slammed into G-34 Mercenary. Map ----- +----------------------------------------------------+ | ???????????????????????????????????????????? | | ???????????????????????????????????????????? | | ???????????????????????????????????????????? | | ???????????????????????????????????????????? | | ???????????????????????????????????????????? | | ???????????????????????????????????????????? | | ???????????????????????????????????????????? | | ???????????????????????????????????????????? | | ???????????????????????????????????????????? | | ???????????????????????????????????????????? | | ???????????????????????????????????????????? | | ??????????????????? ???????????????????? | | ??????????????????" ######?????????????? | | ?????????????????? # #?????????????? | | ????????????# ??? # #?????????????? | | ????????????# ?"" # #?????????????? | | ????????????# """ # #?????????????? | | ????????????# """ # #?????????????? | | ????????????# " # #?????????????? | | ????????????# T # #?????????????? | | ????????????# "% # ! #?????????????? | | ????????????# #? ??????????????? | | # ??????????? ###+####???????????? | | ? ???###########?# g gs g #???????????? | | ?# ???# #?# w r <*#???????????? | | ?# ??# #?# g@ u%!#???????????? | | ?# ??# "Y" #?# s r #???????????? | | ?# ?# """ #?# ##########???????????? | | ?# ##+########### #????????????????????? | | ?# #????????????????????? | | ?# #????????????????????? | | ?# / """ ! !#????????????????????? | | ?# ! """ !! #????????????????????? | | ?# """ !! #????????????????????? | | ?# """ #????????????????????? | | ?# #????????????????????? | | ?# #????????????????????? | | ?# #????????????????????? | | ?#######"T"##" "### #????????????????????? | | ???????#"""##"R"#?# #????????????????????? | | ???????######"""### ##???????????????????? | | ???????########### #########???????????? | | ???????# ???????? | | ???????# #######?????????????? | | ???????# #???????????????????? | | ???????# ####### #???????????????????? | | ???????# #????####+#####?????????????????? | | ???????# #????# #?????????????????? | | ???????# #????# """ #?????????????????? | | ???????#####????# """ #?????????????????? | +----------------------------------------------------+ Best States ------------- Heat Dissipation 25 Energy Generation 10 Energy Capacity 250 Matter Stores 269 Matter Capacity 300 Sight Range 16 Terrain Scan Density 10 Evasion (%) 40 Recoil Reduction 2 Item Schematics ----------------- None Robot Schematics ------------------ None Fabricated ------------ Nothing Alien Tech Used ----------------- None Achievements -------------- None Challenges ------------ None Game ------ Seed SignalPhasingDoomcannon Manual? 0 Play Time 00:07:05 Cumulative 18.7 hours Start 2020.04.01 @ 06:14:21 End 2020.04.01 @ 06:38:47 Sessions 1 Manual Loads 0 Difficulty Rogue Special Mode AFD2020/Player2 Game No. 83 Rogue 79 Adventurer 0 Explorer 4 Win Type - Total 0 Types 0/0/0/0/0/0/0 Lore% 21 Gallery% 17 Achievement% 17 Wizard Run 0 Options --------- ASCII 0 Keyboard 0 Movement Arrows Keybinds 0 Fullscreen 1 Font 18/X11 Map View 76x50 Tactical HUD 1 Map Filters NONE Filters NONE Steam 1 RUN: d1e9d501-ec07-490d-be75-51b7ee8c53a0